bitfinex-derivatives/quotes_ETHF0:USTF0_20240917
["timestamp","ask_amount","ask_price","bid_price","bid_amount"]
[1726593700639,0.42221,2367.9,2367.6,0.4176]
[1726593700844,0.42219,2368.0,2367.9,0.4222]
[1726593702350,3.2078,2368.1,2368.0,0.42219]
[1726593702749,3.2078,2368.1,2368.0,1.47766]
[1726593702957,0.4214,2368.3,2368.2,0.42215]
[1726593705855,0.4003,2368.5,2368.1,0.4195]
[1726593706050,0.4003,2368.5,2368.3,0.42212]
[1726593706051,0.8224,2368.5,2368.3,0.42212]
[1726593706255,3.6081,2368.5,2368.1,1.47492]
[1726593706447,4.0302,2368.5,2368.3,0.42212]
[1726593706643,4.0302,2368.5,2368.1,1.47492]
[1726593706850,4.0302,2368.5,2368.3,0.42212]
[1726593707553,3.6081,2368.5,2368.3,0.42212]
[1726593707857,0.8224,2368.5,2368.3,0.42212]
[1726593708050,0.8224,2368.5,2368.4,0.42212]
[1726593708247,3.6081,2368.5,2368.4,0.42212]
[1726593709146,3.2078,2368.5,2368.4,0.42212]
[1726593709349,3.6299,2368.5,2368.4,0.42212]
[1726593709644,3.2078,2368.5,2368.4,0.42212]
[1726593710745,3.2078,2368.5,2368.4,4.64452]
[1726593711053,3.2078,2368.5,2368.4,1.47742]
[1726593711357,0.8137,2368.7,2368.6,0.42208]
[1726593711649,0.3985,2368.7,2368.6,0.42208]
[1726593711849,0.3985,2368.7,2368.3,3.3]
[1726593711850,0.82057,2368.7,2368.5,0.42208]
[1726593712059,0.3985,2368.7,2368.6,0.42208]
[1726593712253,0.82056,2368.7,2368.5,0.42208]
[1726593713053,0.4221,2368.5,2368.2,3.2078]
[1726593713456,0.4221,2368.5,2368.4,0.42212]
[1726593713656,0.42211,2368.5,2368.4,0.42212]
[1726593713956,0.42212,2368.4,2368.3,0.42212]
[1726593714154,0.42211,2368.5,2368.3,0.42212]
[1726593714854,3.6063,2368.7,2368.2,3.2078]
[1726593715159,4.02837,2368.7,2368.6,0.42208]
[1726593715356,4.02837,2368.7,2368.5,0.42209]
[1726593715556,0.4155,2368.9,2368.5,3.3]
[1726593715760,0.3998,2368.8,2368.7,0.42206]
[1726593717958,3.30807182,2369.6,2368.7,0.42206]
[1726593717959,0.422,2369.1,2368.9,0.42201]
[1726593718256,0.4175,2369.1,2368.9,0.42201]
[1726593718651,0.4175,2369.1,2368.7,3.3]
[1726593718652,0.8395,2369.1,2368.7,3.3]
[1726593718858,0.8395,2369.1,2368.9,0.42202]
[1726593719362,0.4175,2369.1,2369.0,0.42201]
[1726593719557,0.83949,2369.1,2368.9,0.42201]
[1726593719754,0.4175,2369.1,2369.0,0.42201]
[1726593719952,0.405,2369.2,2369.1,0.42199]
[1726593720767,0.3897,2369.4,2369.3,0.42196]
[1726593720952,0.3865,2369.7,2369.3,3.3]
[1726593721159,0.814,2370.0,2369.9,0.42185]
[1726593721360,0.814,2370.0,2369.5,6.5078]
[1726593721661,0.42186,2369.9,2369.6,0.4219]
[1726593722357,3.2078,2369.9,2369.7,0.42188]
[1726593722556,4.44364,2370.0,2369.7,0.42188]
[1726593723063,4.0218,2370.0,2369.9,0.42185]
[1726593723365,0.4243,2370.0,2369.9,0.42185]
[1726593723659,3.17424494,2370.3,2370.0,0.42182]
[1726593723861,1.2248,2370.3,2370.0,0.42182]
[1726593724059,1.2248,2370.3,2369.6,3.3]
[1726593724060,3.97374494,2370.3,2369.8,3.3]
[1726593724363,1.2248,2370.3,2370.1,0.4218]
[1726593724563,1.2248,2370.3,2370.0,0.42182]
[1726593725261,1.64658,2370.3,2369.9,0.84624]
[1726593725658,0.42181,2370.2,2369.9,0.4244]
[1726593725965,1.2248,2370.3,2369.8,3.2078]
[1726593726263,1.2248,2370.3,2370.1,0.4218]
[1726593726465,1.2248,2370.3,2370.0,3.72182]
[1726593726667,1.2248,2370.3,2370.1,0.42181]
[1726593726968,1.2248,2370.3,2370.0,3.3]
[1726593727170,1.2248,2370.3,2369.9,0.4043]
[1726593727561,1.2248,2370.3,2370.1,0.42181]
[1726593727868,1.2248,2370.3,2370.0,0.42182]
[1726593728270,3.80323494,2370.7,2370.2,0.42179]
[1726593728271,5.95674494,2370.7,2370.2,0.42179]
[1726593728566,1.23915,2370.5,2370.2,0.42179]
[1726593728774,1.23915,2370.5,2370.1,0.42181]
[1726593729067,0.8174,2370.5,2370.1,3.3]
[1726593729263,0.8174,2370.5,2370.1,0.4218]
[1726593729264,4.53915,2370.5,2370.1,0.4218]
[1726593729660,4.53915,2370.5,2369.9,3.7043]
[1726593729661,4.1174,2370.5,2369.9,0.4043]
[1726593729861,4.53915,2370.5,2369.9,0.4043]
[1726593730067,0.8174,2370.5,2370.1,3.3]
[1726593730270,0.8174,2370.5,2370.2,0.42178]
[1726593730567,0.8174,2370.5,2370.1,3.3]
[1726593730766,0.8174,2370.5,2369.9,1.86771]
[1726593730767,1.23915,2370.5,2370.2,0.42179]
[1726593731264,0.8174,2370.5,2369.9,3.7043]
[1726593731463,1.23915,2370.5,2370.2,0.42179]
[1726593731864,0.42178,2370.3,2369.9,3.7043]
[1726593732072,3.2078,2370.4,2370.2,0.42178]
[1726593732567,4.1174,2370.5,2370.1,3.3]
[1726593732568,0.8174,2370.5,2370.1,3.3]
[1726593732771,0.8174,2370.5,2370.3,0.42176]
[1726593733072,0.8174,2370.5,2370.1,3.3]
[1726593733262,4.0252,2370.5,2370.3,0.42176]
[1726593733766,0.42177,2370.4,2369.9,0.4043]
[1726593733967,3.3,2370.2,2369.8,3.2078]
[1726593734268,0.42187,2369.8,2369.5,4.60091]
[1726593734571,0.7862,2369.7,2369.6,0.4219]
[1726593735359,0.42185,2369.9,2369.6,0.4219]
[1726593735360,0.4076,2370.1,2369.6,3.3]
[1726593735559,0.42184,2370.0,2369.7,0.42187]
[1726593735770,1.64652,2370.1,2369.8,0.42187]
[1726593736368,0.42184,2370.0,2369.7,0.42187]
[1726593737174,1.64651,2370.1,2369.5,4.3548]
[1726593737370,1.64651,2370.1,2369.8,0.42186]
[1726593737768,0.42184,2370.0,2369.7,0.42187]
[1726593738258,0.42185,2369.9,2369.5,3.3]
[1726593738458,0.42184,2370.0,2369.5,3.3]
[1726593738663,4.5247,2370.1,2369.6,3.3]
[1726593738664,1.2247,2370.1,2369.6,3.3]
[1726593738871,1.2247,2370.1,2369.8,3.3]
[1726593739073,1.2247,2370.1,2370.0,0.42183]
[1726593739371,3.2078,2370.5,2370.4,0.42176]
[1726593739581,3.5991,2370.5,2370.2,3.3]
[1726593739869,3.5991,2370.5,2370.3,0.42177]
[1726593740074,0.3913,2370.5,2370.3,0.42177]
[1726593740274,0.3913,2370.5,2370.4,0.42176]
[1726593740875,0.3913,2370.5,2370.2,3.3]
[1726593741071,0.3913,2370.5,2370.3,0.42176]
[1726593741266,0.3913,2370.5,2370.1,3.3]
[1726593741467,0.3913,2370.5,2370.4,0.42176]
[1726593742871,0.3913,2370.5,2370.2,0.42179]
[1726593743068,0.4076,2370.4,2369.9,3.7193]
[1726593743266,0.4076,2370.4,2370.0,3.2078]
[1726593743774,0.4076,2370.4,2370.0,6.5078]
[1726593743982,0.4076,2370.4,2370.3,0.42178]
[1726593745073,0.42173,2370.6,2370.3,0.42178]
[1726593745278,0.42174,2370.5,2370.2,0.42178]
[1726593745483,0.82064,2370.5,2370.2,0.42178]
[1726593745869,3.62957,2370.4,2370.1,0.4218]
[1726593746078,0.42178,2370.3,2370.0,0.42182]
[1726593746268,0.4092,2370.2,2370.0,0.42182]
[1726593746473,0.8007,2370.2,2369.9,3.7193]
[1726593746981,0.8007,2370.2,2370.1,0.42181]
[1726593749184,0.8007,2370.2,2369.9,0.4193]
[1726593749385,0.42187,2369.8,2369.7,3.2078]
[1726593749681,0.42189,2369.7,2369.5,0.42192]
[1726593749982,0.4151,2369.6,2369.5,0.42192]
[1726593752685,0.81,2369.7,2369.6,0.4219]
[1726593752977,3.2078,2370.1,2369.6,0.4219]
[1726593752978,0.4157,2370.1,2370.0,0.42183]
[1726593753583,0.42184,2370.0,2369.8,0.42186]
[1726593753784,0.42184,2370.0,2369.8,0.42187]
[1726593753973,0.4213,2369.9,2369.8,0.42187]
[1726593754377,0.4213,2369.9,2369.5,1.05479]
[1726593754580,0.4213,2369.9,2369.8,0.42187]
[1726593756183,0.4213,2369.9,2369.6,0.42189]
[1726593756378,0.42193,2369.5,2369.3,0.42195]
[1726593756580,0.4177,2369.4,2369.1,4.179]
[1726593756783,0.8328,2369.4,2369.3,0.42196]
[1726593756985,1.25474,2369.4,2369.0,0.3933]
[1726593757285,0.8328,2369.4,2369.0,0.3933]
[1726593757482,0.4074,2369.3,2369.2,0.42196]
[1726593758681,0.82937,2369.3,2369.0,0.3933]
[1726593758879,0.4074,2369.3,2369.1,0.42198]
[1726593759080,4.2208,2369.2,2368.6,11.94831554]
[1726593759284,0.42198,2369.2,2369.0,0.422]
[1726593759581,4.2208,2369.1,2369.0,0.422]
[1726593759789,0.42198,2369.2,2369.0,0.422]
[1726593759987,0.82937,2369.3,2369.0,0.422]
[1726593760187,0.42198,2369.2,2369.0,0.422]
[1726593760385,0.42198,2369.2,2368.6,7.563]
[1726593760386,0.4074,2369.3,2368.8,3.3]
[1726593760580,0.82937,2369.3,2368.9,0.3999]
[1726593760882,0.82936,2369.3,2368.9,0.3999]
[1726593761087,0.42199,2369.2,2368.9,0.82191]
[1726593761386,0.42199,2369.2,2369.0,0.42201]
[1726593761583,0.42198,2369.2,2369.0,0.42201]
[1726593761982,0.42198,2369.2,2369.1,0.42199]
[1726593762289,0.82937,2369.3,2369.2,0.42197]
[1726593762487,5.05017,2369.3,2369.1,0.42198]
[1726593762687,0.42197,2369.2,2369.0,0.42199]
[1726593762883,0.42197,2369.2,2369.1,0.42199]
[1726593763385,0.4074,2369.3,2369.2,0.42197]
[1726593764292,0.4151,2369.4,2369.3,0.42196]
[1726593766083,0.4151,2369.4,2369.0,4.35502]
[1726593766084,0.83704,2369.4,2369.2,0.42196]
[1726593767181,0.42198,2369.2,2368.9,3.6077]
[1726593767380,0.8397,2369.1,2369.0,0.42199]
[1726593767785,0.42197,2369.3,2369.1,0.42198]
[1726593767983,0.84387,2369.3,2369.1,0.42198]
[1726593768278,0.4219,2369.3,2369.2,0.42197]
[1726593768484,0.8329,2369.4,2369.3,0.42196]
[1726593768790,0.4151,2369.4,2369.3,0.42196]
[1726593772797,0.83704,2369.4,2369.2,0.42196]
[1726593773090,0.42199,2369.2,2369.0,0.422]
[1726593773288,0.42199,2369.2,2369.0,0.42201]
[1726593773493,0.42199,2369.2,2368.9,3.6077]
[1726593773494,0.83705,2369.4,2369.2,0.42197]
[1726593773794,0.42196,2369.3,2369.2,0.42197]
[1726593773985,0.4151,2369.4,2369.3,0.42196]
[1726593774696,3.2078,2369.5,2369.4,0.42194]
[1726593774893,1.05454,2370.1,2369.4,5.66505]
[1726593775091,1.05454,2370.1,2369.7,0.42188]
[1726593775092,0.82116,2369.9,2369.7,0.42188]
[1726593775786,0.82116,2369.9,2369.8,0.42187]
[1726593775787,0.3993,2369.9,2369.8,0.42187]
[1726593775992,0.82115,2369.9,2369.4,1.44425]
[1726593776199,0.3993,2369.9,2369.8,0.42187]
[1726593776892,0.82116,2369.9,2369.7,0.42188]
[1726593777591,0.3993,2369.9,2369.8,0.42187]
[1726593778285,0.3993,2369.9,2369.6,1.05475]
[1726593778286,0.42181,2370.2,2370.0,0.42183]
[1726593778487,3.2078,2370.1,2370.0,0.42183]
[1726593779088,0.8157,2370.2,2370.0,0.42183]
[1726593779484,0.42182,2370.1,2369.6,3.2078]
[1726593779690,0.42182,2370.1,2369.8,0.42185]
[1726593780092,0.42186,2369.9,2369.6,3.6021]
[1726593780393,0.42184,2370.0,2369.7,0.42187]
[1726593780598,0.42184,2370.0,2369.8,0.42186]
[1726593781397,0.8368,2369.9,2369.8,0.42186]
[1726593781905,0.8368,2369.9,2369.6,0.3943]
[1726593781906,1.25865,2369.9,2369.7,0.42187]
[1726593782100,0.4183,2369.8,2369.7,0.42187]
[1726593788110,3.30807182,2370.1,2370.0,0.42183]
[1726593788414,4.63381712,2370.2,2370.0,0.42182]
[1726593788415,4.50428182,2370.2,2370.0,0.42182]
[1726593788598,4.50426182,2370.2,2370.0,0.42181]
[1726593788800,1.19619,2370.2,2370.0,0.42181]
[1726593789196,1.19619,2370.2,2369.8,3.2078]
[1726593789197,0.42182,2370.1,2369.8,3.2078]
[1726593789399,1.19621,2370.2,2370.0,0.42183]
[1726593789803,0.7744,2370.2,2369.8,3.2078]
[1726593790102,0.3876,2370.2,2370.1,0.42181]
[1726593791199,0.81379,2370.3,2370.1,0.42181]
[1726593791405,1.21029,2370.3,2370.1,0.42181]
[1726593792697,1.21029,2370.3,2369.8,3.2078]
[1726593792698,0.42181,2370.2,2369.8,3.2078]
[1726593792903,0.42182,2370.1,2369.9,0.42184]
[1726593793211,0.42183,2370.0,2369.9,0.42184]
[1726593794003,0.42182,2370.1,2370.0,0.42183]
[1726593794299,0.392,2370.3,2370.1,0.4218]
[1726593794504,0.42179,2370.2,2370.1,0.4218]
[1726593796202,3.72986182,2370.2,2370.1,0.4218]
[1726593797408,3.30807182,2370.2,2370.1,0.4218]
[1726593798512,5.09980712,2370.3,2370.2,0.42179]
[1726593798513,4.54846182,2370.3,2370.2,0.42179]
[1726593798706,0.392,2370.3,2370.2,0.42179]
[1726593798908,3.30833171,2370.5,2370.4,0.42176]
[1726593799108,4.55985171,2370.6,2370.5,0.42174]
[1726593799409,3.30833171,2370.7,2370.6,0.42172]
[1726593799608,3.30833171,2370.8,2370.7,0.42171]
[1726593800207,4.13813171,2370.9,2370.8,0.42169]
[1726593800610,3.30833171,2371.0,2370.9,0.42167]
[1726593800811,3.30833171,2371.0,2370.9,3.72167]
[1726593801105,0.836,2371.2,2371.1,0.42163]
[1726593801106,4.14433171,2371.2,2371.1,0.42163]
[1726593801312,0.836,2371.2,2371.1,0.42163]
[1726593802510,0.836,2371.2,2370.8,0.3905]
[1726593802811,0.42164,2371.1,2370.8,0.81218]
[1726593803202,4.0438,2371.2,2370.9,0.42166]
[1726593803403,1.25763,2371.2,2370.9,0.42166]
[1726593803905,1.25763,2371.2,2370.8,0.81218]
[1726593803906,0.836,2371.2,2370.8,0.81218]
[1726593804101,0.836,2371.2,2370.8,0.3905]
[1726593804306,0.42164,2371.1,2370.8,0.3905]
[1726593804510,4.136,2371.2,2370.8,0.3905]
[1726593804716,4.136,2371.2,2370.9,0.42166]
[1726593805012,0.42163,2371.1,2370.8,0.81219]
[1726593805202,0.42165,2371.1,2370.8,0.81217]
[1726593805410,0.42165,2371.1,2370.9,0.42167]
[1726593805616,0.42165,2371.1,2370.9,0.42166]
[1726593805617,0.42164,2371.1,2370.9,0.42166]
[1726593805913,4.55763,2371.2,2371.0,0.42165]
[1726593806214,0.836,2371.2,2371.1,0.42163]
[1726593807119,0.836,2371.2,2371.0,0.42164]
[1726593807410,1.25762,2371.2,2371.0,0.42164]
[1726593807619,0.836,2371.2,2371.0,0.42164]
[1726593807817,0.836,2371.2,2371.1,0.42163]
[1726593808109,0.836,2371.2,2371.0,0.42164]
[1726593808507,4.35409,2371.1,2370.7,3.2078]
[1726593808712,4.35409,2371.1,2370.5,4.60073]
[1726593808713,3.72169,2370.8,2370.5,4.60073]
[1726593809019,3.72169,2370.8,2370.4,3.2078]
[1726593809020,1.202,2370.7,2370.6,0.42172]
[1726593809609,0.4066,2370.7,2370.6,0.42172]
[1726593809809,1.23685,2371.1,2370.8,0.42168]
[1726593810018,0.42165,2371.0,2370.7,0.42169]
[1726593810416,0.42165,2371.0,2370.8,0.42168]
[1726593810608,1.2218,2371.1,2370.8,0.42168]
[1726593810922,1.2218,2371.1,2370.7,3.2078]
[1726593811117,1.2218,2371.1,2370.9,0.42166]
[1726593811716,4.36231171,2371.4,2371.0,7.5176]
[1726593811717,3.30833171,2371.4,2371.0,7.5176]
[1726593811920,0.8047,2371.7,2371.3,6.5078]
[1726593812107,1.85854,2371.7,2371.1,3.3]
[1726593812311,0.42155,2371.6,2371.4,0.42158]
[1726593812515,0.8047,2371.7,2371.5,0.42156]
[1726593812720,1.22623,2371.7,2371.5,0.42156]
[1726593813018,1.22624,2371.7,2371.4,0.42157]
[1726593813218,0.8047,2371.7,2371.4,0.42157]
[1726593813407,1.22624,2371.7,2371.4,0.42157]
[1726593813613,0.8047,2371.7,2371.5,0.42155]
[1726593813912,1.22623,2371.7,2371.6,0.42155]
[1726593814116,1.22623,2371.7,2371.5,0.42155]
[1726593814324,0.8047,2371.7,2371.2,0.42162]
[1726593814621,1.22623,2371.7,2371.5,0.42155]
[1726593814817,1.22623,2371.7,2371.2,0.42162]
[1726593815022,0.8047,2371.7,2371.6,0.42155]
[1726593815619,4.1047,2371.7,2371.1,4.66678]
[1726593815823,4.1047,2371.7,2370.9,0.42166]
[1726593815824,0.42166,2371.0,2370.9,0.42166]
[1726593816022,3.3,2371.3,2370.7,1.05426]
[1726593816217,0.3874,2371.1,2371.0,0.42165]
[1726593818024,0.4003,2371.2,2371.1,0.42163]
[1726593818722,0.82193,2371.2,2371.1,0.42163]
[1726593819119,0.4003,2371.2,2371.1,0.42163]
[1726593819922,0.4003,2371.2,2370.7,1.05425]
[1726593819923,0.82193,2371.2,2370.7,1.05425]
[1726593820126,0.82193,2371.2,2371.1,0.42163]
[1726593820427,0.4003,2371.2,2371.1,0.42163]
[1726593820627,0.4222,2371.3,2371.2,0.42162]
[1726593821421,0.4222,2371.3,2371.2,8.90027]
[1726593821624,0.4178,2371.5,2371.4,0.42158]
[1726593822524,0.4178,2371.5,2371.1,0.4093]
[1726593822726,0.83938,2371.5,2371.3,0.42159]
[1726593823227,0.42159,2371.4,2371.3,0.4216]
[1726593823427,0.42159,2371.4,2370.9,1.46348]
[1726593823622,0.408,2371.3,2371.2,0.4216]
[1726593824728,0.4178,2371.5,2371.4,0.42158]
[1726593824935,0.84084,2371.7,2371.6,0.42155]
[1726593825128,0.4193,2371.7,2371.6,0.42155]
[1726593825433,0.4193,2371.7,2371.4,0.4039]
[1726593825628,0.84083,2371.7,2371.4,0.4039]
[1726593825827,0.84083,2371.7,2371.6,0.42155]
[1726593826024,0.4193,2371.7,2371.6,0.42155]
[1726593826223,0.84084,2371.7,2371.5,0.42155]
[1726593826532,0.84084,2371.7,2371.6,0.42155]
[1726593826924,0.84084,2371.7,2371.5,0.42155]
[1726593828423,0.42155,2371.6,2371.5,0.42155]
[1726593828735,0.84084,2371.7,2371.6,0.42155]
[1726593829127,6.51613171,2372.4,2371.6,13.5168]
[1726593829437,6.51613171,2372.4,2371.4,3.2078]
[1726593829438,3.2078,2372.7,2372.2,3.3]
[1726593829629,3.2078,2372.7,2372.6,0.42137]
[1726593829827,3.2078,2372.7,2372.4,3.3]
[1726593829828,0.42137,2372.6,2372.4,3.72139]
[1726593830028,0.42137,2372.6,2372.5,0.42139]
[1726593830231,3.62911,2373.0,2372.7,0.42134]
[1726593830528,3.62911,2373.0,2372.4,6.5078]
[1726593830529,0.84042,2372.9,2372.6,3.3]
[1726593830730,0.4191,2372.9,2372.7,0.42134]
[1726593830933,0.4191,2372.9,2372.6,3.3]
[1726593830934,0.84042,2372.9,2372.6,0.42136]
[1726593831130,0.84042,2372.9,2372.4,6.5078]
[1726593831331,0.84042,2372.9,2372.7,0.42134]
[1726593831539,0.4191,2372.9,2372.7,0.42134]
[1726593831835,0.4191,2372.9,2372.8,0.42133]
[1726593832625,0.4191,2372.9,2372.7,0.42134]
[1726593833732,0.4191,2372.9,2372.8,0.42133]
[1726593835332,0.4191,2372.9,2372.4,3.2078]
[1726593835539,0.84042,2372.9,2372.7,0.42134]
[1726593835838,0.42134,2372.8,2372.6,0.42135]
[1726593836540,0.4191,2372.9,2372.4,3.2078]
[1726593836840,3.2078,2372.6,2372.2,4.179]
[1726593837040,1.64079,2372.5,2372.1,3.2078]
[1726593837243,1.64079,2372.5,2372.3,0.42141]
[1726593837436,1.64079,2372.5,2372.4,0.4214]
[1726593837637,1.64079,2372.5,2372.3,0.42141]
[1726593837839,1.64079,2372.5,2372.4,0.4214]
[1726593837840,1.2194,2372.5,2372.4,0.4214]
[1726593838241,0.8112,2372.5,2372.4,0.4214]
[1726593839842,0.4082,2372.9,2372.8,0.42133]
[1726593840035,0.4082,2372.9,2372.5,0.4025]
[1726593840242,0.4082,2372.9,2372.8,0.42133]
[1726593840935,1.2381,2373.0,2372.9,0.42131]
[1726593841135,0.8168,2373.0,2372.5,1.45595]
[1726593841342,1.23811,2373.0,2372.9,0.42131]
[1726593841535,0.42132,2372.9,2372.5,1.45595]
[1726593841738,0.42132,2372.9,2372.4,3.2078]
[1726593841739,1.05329,2372.9,2372.4,3.2078]
[1726593842038,0.8168,2373.0,2372.4,3.2078]
[1726593842039,0.84494,2372.8,2372.4,3.2078]
[1726593842241,0.84494,2372.8,2372.6,0.42136]
[1726593842539,0.4236,2372.8,2372.7,0.42135]
[1726593842738,0.84494,2372.8,2372.6,0.42136]
[1726593842939,0.84494,2372.8,2372.7,0.42135]
[1726593843436,5.05934,2372.8,2372.7,0.42135]
[1726593843843,0.42135,2372.7,2372.6,0.42135]
[1726593844237,0.84495,2372.8,2372.7,0.42135]
[1726593844646,5.05935,2372.8,2372.7,0.42135]
[1726593844844,0.4236,2372.8,2372.7,0.42135]
[1726593845037,0.82751,2373.0,2372.9,0.42131]
[1726593845438,0.4062,2373.0,2372.9,0.42131]
[1726593845641,0.4258,2373.1,2373.0,0.4213]
[1726593845945,0.3911,2373.3,2373.2,0.42126]
[1726593846946,0.82352,2373.5,2373.3,0.42123]
[1726593847142,0.4023,2373.5,2373.4,0.42123]
[1726593847353,0.81229,2373.6,2373.4,0.42123]
[1726593847548,0.81229,2373.6,2373.1,4.05]
[1726593847549,0.42122,2373.5,2373.1,4.05]
[1726593847854,0.42126,2373.3,2372.8,4.05]
[1726593848152,0.3911,2373.6,2373.3,0.42123]
[1726593848352,0.3911,2373.6,2373.2,0.42125]
[1726593848862,0.42123,2373.4,2373.2,0.42125]
[1726593849751,0.42125,2373.3,2373.1,0.42127]
[1726593850247,0.42125,2373.3,2373.2,0.42126]
[1726593850449,0.4273,2373.3,2373.2,0.42126]
[1726593851152,0.42122,2373.5,2373.3,0.42124]
[1726593852153,0.42123,2373.4,2373.3,0.42124]
[1726593852659,0.42123,2373.4,2373.2,0.42125]
[1726593852861,0.42123,2373.4,2373.3,0.42124]
[1726593853065,0.42123,2373.4,2373.2,0.42125]
[1726593853459,0.42123,2373.4,2373.3,0.42124]
[1726593853665,0.42123,2373.4,2373.2,0.42125]
[1726593853865,3.2078,2373.4,2373.1,0.42127]
[1726593854066,3.29,2373.2,2372.6,7.3868]
[1726593854254,6.4978,2373.0,2372.5,0.4103]
[1726593854461,0.42132,2372.9,2372.8,0.42133]
[1726593854762,4.26107,2373.0,2372.5,0.4103]
[1726593854961,0.42133,2372.8,2372.6,0.42135]
[1726593855161,3.2078,2373.0,2372.5,4.75376]
[1726593855356,3.62911,2373.0,2372.9,0.42131]
[1726593855865,8.26381,2373.0,2372.9,0.42131]
[1726593856067,0.4203,2373.0,2372.9,0.42131]
[1726593856454,0.8416,2373.0,2372.9,0.42131]
[1726593857155,0.4203,2373.0,2372.9,0.42131]
[1726593857462,0.42127,2373.2,2373.1,0.42127]
[1726593857662,0.3972,2373.2,2372.7,4.34337]
[1726593857869,0.81847,2373.2,2373.1,0.42128]
[1726593858067,0.3972,2373.2,2373.1,0.42128]
[1726593858964,3.2078,2373.8,2373.1,7.55099]
[1726593859171,0.8479,2373.6,2373.5,0.42121]
[1726593859373,0.4267,2373.6,2373.5,0.42121]
[1726593860060,0.4267,2373.6,2373.3,3.29]
[1726593860061,0.84789,2373.6,2373.3,3.29]
[1726593860255,0.84789,2373.6,2373.4,0.42121]
[1726593860461,0.4267,2373.6,2373.4,0.42121]
[1726593860661,0.8479,2373.6,2373.4,0.42121]
[1726593861167,0.42121,2373.5,2373.4,0.42121]
[1726593861469,0.4267,2373.6,2373.4,0.42122]
[1726593861660,4.6395,2373.6,2373.0,0.4034]
[1726593861863,3.6345,2373.6,2373.0,0.4034]
[1726593862064,0.42125,2373.3,2373.1,0.42127]
[1726593862560,1.05303,2373.5,2373.1,0.42127]
[1726593862766,0.42123,2373.4,2373.2,0.42126]
[1726593862963,0.42123,2373.4,2373.1,3.29]
[1726593863367,0.42123,2373.4,2373.3,0.42124]
[1726593863564,0.42123,2373.4,2373.1,3.29]
[1726593864070,0.42125,2373.3,2373.2,0.42126]
[1726593864274,0.42123,2373.4,2373.3,0.42124]
[1726593864872,0.42125,2373.3,2373.2,0.42126]
[1726593865066,0.42124,2373.4,2373.2,0.42126]
[1726593865267,0.42124,2373.4,2373.3,0.42124]
[1726593865571,0.4267,2373.6,2373.5,0.42121]
[1726593865765,0.8218,2373.7,2373.6,0.42119]
[1726593868064,0.4052,2373.7,2373.6,0.42119]
[1726593868466,0.81605,2373.9,2373.7,0.42116]
[1726593868674,0.81605,2373.9,2373.8,0.42116]
[1726593868675,0.3949,2373.9,2373.8,0.42116]
[1726593868863,0.3949,2373.9,2373.7,3.71116]
[1726593869065,0.81605,2373.9,2373.8,0.42116]
[1726593869667,0.3949,2373.9,2373.8,0.42116]
[1726593869867,0.83352,2374.0,2373.9,0.42114]
[1726593870068,0.4124,2374.0,2373.9,0.42114]
[1726593870275,0.83352,2374.0,2373.8,0.42114]
[1726593870478,0.83352,2374.0,2373.9,0.42114]
[1726593870670,0.83352,2374.0,2373.8,0.42114]
[1726593870671,0.83353,2374.0,2373.8,0.42114]
[1726593870871,0.4124,2374.0,2373.9,0.42114]
[1726593871678,2.74277756,2374.2,2374.1,0.42114]
[1726593871867,6.51613171,2374.6,2374.2,0.42113]
[1726593871868,2.74277756,2374.3,2374.2,0.42113]
[1726593872067,3.16387756,2374.4,2374.2,0.42111]
[1726593872268,0.4211,2374.4,2374.3,0.42111]
[1726593872478,2.74277756,2374.4,2374.3,0.42111]
[1726593872675,1.2308,2374.5,2374.4,0.42109]
[1726593872866,1.65187,2374.5,2374.4,0.42109]
[1726593873071,4.3980912,2374.5,2374.4,0.42109]
[1726593873267,3.16122152,2374.5,2374.4,0.42109]
[1726593873477,2.74649124,2374.6,2374.3,7.55056]
[1726593873676,2.74649124,2374.6,2374.5,3.71107]
[1726593873873,2.74649124,2374.7,2374.6,0.42106]
[1726593874069,2.74649124,2374.8,2374.7,0.42104]
[1726593874273,2.74649124,2374.9,2374.8,0.42102]
[1726593874472,2.74649124,2375.1,2374.8,5.26376]
[1726593874669,3.13909124,2375.3,2375.0,3.29]
[1726593874870,2.74649124,2375.2,2375.1,0.42096]
[1726593875070,2.74649124,2375.2,2375.0,3.29]
[1726593875071,6.77149124,2375.4,2375.0,3.29]
[1726593875272,5.95429124,2375.4,2375.0,3.29]
[1726593875478,5.95429124,2375.4,2375.3,3.71093]
[1726593875479,3.2078,2375.4,2375.3,3.71093]
[1726593875869,3.2078,2375.4,2375.3,0.42093]
[1726593876068,3.62872,2375.4,2374.8,1.05254]
[1726593876277,3.62872,2375.4,2374.6,0.4187]
[1726593876278,5.95429124,2375.4,2374.6,0.4187]
[1726593876470,4.10153171,2375.7,2374.6,0.4187]
[1726593876471,5.95429124,2375.2,2374.6,0.4187]
[1726593876783,2.74348044,2375.3,2374.8,4.04]
[1726593877081,2.74348044,2375.3,2374.6,3.83841296]
[1726593877082,2.74348044,2375.5,2375.0,4.04]
[1726593877376,2.74348044,2375.5,2375.4,0.42091]
[1726593877586,0.42091,2375.5,2375.0,4.04]
[1726593877882,0.42092,2375.4,2375.2,0.42095]
[1726593878377,0.42091,2375.5,2375.2,0.42095]
[1726593878677,0.42094,2375.3,2375.1,0.42096]
[1726593878884,0.42094,2375.3,2375.0,4.04]